Department Family,Entity,Date,Expense Type,Expense Area,Supplier,Transaction Number,Amount,VAT Registration Number
Department of Health,East Sussex Healthcare NHS Trust,01/03/2017,BLOOD PRODUCTS - NBS ST CONTRA,Integrated Care,NHS BLOOD AND TRANSPLANT (NHSBT),0000146454,63773.92,
Department of Health,East Sussex Healthcare NHS Trust,01/03/2017,LEASE OF LAND,Commercial,RYE WINCHELSEA & DISTRICT MEM HOSP LTD,0000370625,25000.00,
Department of Health,East Sussex Healthcare NHS Trust,01/03/2017,STOCK-ASCRIBE CONQUEST,Pharmacy Stock,NOVARTIS PHARMACEUTICALS UK LTD,0001281727,30637.30,
Department of Health,East Sussex Healthcare NHS Trust,01/03/2017,STOCK-ASCRIBE CONQUEST,Pharmacy Stock,NOVARTIS PHARMACEUTICALS UK LTD,0001282177,29383.20,
Department of Health,East Sussex Healthcare NHS Trust,01/03/2017,STOCK-ASCRIBE CONQUEST,Pharmacy Stock,ROCHE PRODUCTS LTD,0001283554,33729.72,
Department of Health,East Sussex Healthcare NHS Trust,01/03/2017,H/CARE PURCH COM - SPIRE,Integrated Care,SPIRE HEALTHCARE FINANCE,0001444588,106701.00,
Department of Health,East Sussex Healthcare NHS Trust,01/03/2017,CAPITAL EXPEND BUILDINGS,Other Central,SMS (SOUTHERN) LTD,0001445620,52509.98,
Department of Health,East Sussex Healthcare NHS Trust,01/03/2017,PROFESSIONAL FEES,Corporate Services,LIAISON FINANCIAL SERVICES LTD,0001446185,16098.93,
Department of Health,East Sussex Healthcare NHS Trust,01/03/2017,AGENCY DIRECT ENGAGEMENT,Other Central,LIAISON FINANCIAL SERVICES LTD,0001446185,214652.45,
Department of Health,East Sussex Healthcare NHS Trust,01/03/2017,GENERAL RATES,Commercial,EASTBOURNE BOROUGH COUNCIL,0001446187,84264.00,
Department of Health,East Sussex Healthcare NHS Trust,01/03/2017,CAPITAL EXPEND BUILDINGS,Other Central,HP INC. UK LIMITED,0002180844,32963.28,
Department of Health,East Sussex Healthcare NHS Trust,01/03/2017,INTERVENTIONAL RADIOLOGY LEASE,Integrated Care,SIEMENS FINANCIAL SERVICES LTD,0002184391,30313.87,
Department of Health,East Sussex Healthcare NHS Trust,01/03/2017,PACEMAKERS,Integrated Care,SORIN GROUP (LIVANOVA UK LTD),0002267954,14400.00,
Department of Health,East Sussex Healthcare NHS Trust,01/03/2017,IMPLANTABLE DEFIBRILLATOR,Integrated Care,SORIN GROUP (LIVANOVA UK LTD),0002267954,13800.00,
Department of Health,East Sussex Healthcare NHS Trust,01/03/2017,CARDIOLOGY CATHETERS,Integrated Care,MEDTRONIC LTD,0002269590,54000.00,
Department of Health,East Sussex Healthcare NHS Trust,01/03/2017,STOCK-ASCRIBE EDGH,Pharmacy Stock,ROCHE PRODUCTS LTD,0013053213,48536.70,
Department of Health,East Sussex Healthcare NHS Trust,01/03/2017,AGENCY CONSULTANT,Integrated Care,TLC - THE LOCUM CONSULTANCY,0020068529,2880.00,
Department of Health,East Sussex Healthcare NHS Trust,01/03/2017,AGENCY CONSULTANT,Integrated Care,TLC - THE LOCUM CONSULTANCY,0020068529,17563.80,
Department of Health,East Sussex Healthcare NHS Trust,01/03/2017,AGENCY SPECIALIST REG,Integrated Care,TLC - THE LOCUM CONSULTANCY,0020068529,21105.00,
Department of Health,East Sussex Healthcare NHS Trust,01/03/2017,AGENCY SPECIALIST REG,Integrated Care,TLC - THE LOCUM CONSULTANCY,0020068529,948.76,
Department of Health,East Sussex Healthcare NHS Trust,01/03/2017,AGENCY SHO,Integrated Care,TLC - THE LOCUM CONSULTANCY,0020068529,1393.48,
Department of Health,East Sussex Healthcare NHS Trust,01/03/2017,AGENCY SPECIALIST REG,Integrated Care,TLC - THE LOCUM CONSULTANCY,0020068529,1680.00,
Department of Health,East Sussex Healthcare NHS Trust,01/03/2017,AGENCY CONSULTANT,Integrated Care,TLC - THE LOCUM CONSULTANCY,0020068529,1317.00,
Department of Health,East Sussex Healthcare NHS Trust,01/03/2017,AGENCY CONSULTANT,Integrated Care,TLC - THE LOCUM CONSULTANCY,0020068529,21012.00,
Department of Health,East Sussex Healthcare NHS Trust,01/03/2017,AGENCY SHO,Integrated Care,TLC - THE LOCUM CONSULTANCY,0020068529,7790.40,
Department of Health,East Sussex Healthcare NHS Trust,01/03/2017,AGENCY SHO,Integrated Care,TLC - THE LOCUM CONSULTANCY,0020068529,766.50,
Department of Health,East Sussex Healthcare NHS Trust,01/03/2017,AGENCY SHO,Integrated Care,TLC - THE LOCUM CONSULTANCY,0020068529,57.00,
Department of Health,East Sussex Healthcare NHS Trust,01/03/2017,AGENCY SPECIALIST REG,Integrated Care,TLC - THE LOCUM CONSULTANCY,0020068529,11648.39,
Department of Health,East Sussex Healthcare NHS Trust,01/03/2017,AGENCY SHO,Integrated Care,TLC - THE LOCUM CONSULTANCY,0020068529,1398.00,
Department of Health,East Sussex Healthcare NHS Trust,01/03/2017,AGENCY STAFF GRADE,Integrated Care,MEDECHO LTD,0020069980,417.00,
Department of Health,East Sussex Healthcare NHS Trust,01/03/2017,AGENCY SPECIALIST REG,Integrated Care,MEDECHO LTD,0020069980,1197.00,
Department of Health,East Sussex Healthcare NHS Trust,01/03/2017,AGENCY SHO,Integrated Care,MEDECHO LTD,0020069980,210.00,
Department of Health,East Sussex Healthcare NHS Trust,01/03/2017,AGENCY CONSULTANT,Integrated Care,MEDECHO LTD,0020069980,25896.00,
Department of Health,East Sussex Healthcare NHS Trust,08/03/2017,CAPITAL EXPEND BUILDINGS,Other Central,PD HARRIS LTD (ALAN HARRIS),0001445627,77309.82,
Department of Health,East Sussex Healthcare NHS Trust,08/03/2017,PROFESSIONAL FEES,Corporate Services,LIAISON FINANCIAL SERVICES LTD,0001446190,14187.40,
Department of Health,East Sussex Healthcare NHS Trust,08/03/2017,AGENCY DIRECT ENGAGEMENT,Other Central,LIAISON FINANCIAL SERVICES LTD,0001446190,189165.33,
Department of Health,East Sussex Healthcare NHS Trust,08/03/2017,PROVISIONS,Commercial,THE CUISINE CENTRE,0001917240,29248.70,
Department of Health,East Sussex Healthcare NHS Trust,08/03/2017,PACEMAKERS,Integrated Care,MEDTRONIC LTD,0002182839,34560.00,
Department of Health,East Sussex Healthcare NHS Trust,08/03/2017,CONTINENCE PRODUCTS,Integrated Care,PAUL HARTMANN LTD,0002184153,34224.86,
Department of Health,East Sussex Healthcare NHS Trust,08/03/2017,STOCK-ASCRIBE EDGH,Pharmacy Stock,ROCHE PRODUCTS LTD,0013053199,31433.40,
Department of Health,East Sussex Healthcare NHS Trust,08/03/2017,AGENCY CONSULTANT,Integrated Care,TLC - THE LOCUM CONSULTANCY,0020070009,2118.00,
Department of Health,East Sussex Healthcare NHS Trust,08/03/2017,AGENCY STAFF GRADE,Integrated Care,TLC - THE LOCUM CONSULTANCY,0020070009,197.40,
Department of Health,East Sussex Healthcare NHS Trust,08/03/2017,AGENCY SPECIALIST REG,Integrated Care,TLC - THE LOCUM CONSULTANCY,0020070009,13839.00,
Department of Health,East Sussex Healthcare NHS Trust,08/03/2017,AGENCY SPECIALIST REG,Integrated Care,TLC - THE LOCUM CONSULTANCY,0020070009,1171.80,
Department of Health,East Sussex Healthcare NHS Trust,08/03/2017,AGENCY SPECIALIST REG,Integrated Care,TLC - THE LOCUM CONSULTANCY,0020070009,1017.60,
Department of Health,East Sussex Healthcare NHS Trust,08/03/2017,AGENCY SPECIALIST REG,Integrated Care,TLC - THE LOCUM CONSULTANCY,0020070009,1209.60,
Department of Health,East Sussex Healthcare NHS Trust,08/03/2017,AGENCY SPECIALIST REG,Integrated Care,TLC - THE LOCUM CONSULTANCY,0020070009,338.40,
Department of Health,East Sussex Healthcare NHS Trust,08/03/2017,AGENCY SPECIALIST REG,Integrated Care,TLC - THE LOCUM CONSULTANCY,0020070009,1289.40,
Department of Health,East Sussex Healthcare NHS Trust,08/03/2017,AGENCY CONSULTANT,Integrated Care,TLC - THE LOCUM CONSULTANCY,0020070009,924.00,
Department of Health,East Sussex Healthcare NHS Trust,08/03/2017,AGENCY CONSULTANT,Integrated Care,TLC - THE LOCUM CONSULTANCY,0020070009,2904.96,
Department of Health,East Sussex Healthcare NHS Trust,08/03/2017,AGENCY SPECIALIST REG,Integrated Care,TLC - THE LOCUM CONSULTANCY,0020070009,10750.80,
Department of Health,East Sussex Healthcare NHS Trust,08/03/2017,AGENCY SHO,Integrated Care,TLC - THE LOCUM CONSULTANCY,0020070009,3106.20,
Department of Health,East Sussex Healthcare NHS Trust,15/03/2017,COMPUTER MAINTENANCE-HARDWARE,Corporate Services,ALLSCRIPTS HEALTHCARE (IT) UK LTD,0000370581,119528.71,
Department of Health,East Sussex Healthcare NHS Trust,15/03/2017,PROFESSIONAL FEES,Corporate Services,LIAISON FINANCIAL SERVICES LTD,0001446192,11492.73,
Department of Health,East Sussex Healthcare NHS Trust,15/03/2017,AGENCY DIRECT ENGAGEMENT,Other Central,LIAISON FINANCIAL SERVICES LTD,0001446192,153236.42,
Department of Health,East Sussex Healthcare NHS Trust,22/03/2017,BLOOD PRODUCTS - NBS ST CONTRA,Integrated Care,NHS BLOOD AND TRANSPLANT (NHSBT),0000146455,67427.33,
Department of Health,East Sussex Healthcare NHS Trust,22/03/2017,BLOOD PRODUCTS - NBS ST CONTRA,Integrated Care,NHS BLOOD AND TRANSPLANT (NHSBT),0000146733,63773.92,
Department of Health,East Sussex Healthcare NHS Trust,22/03/2017,"BOOKS, JOURNALS & SUBCRIPTIONS",Corporate Services,ELSEVIER LTD,0001444701,39363.00,
Department of Health,East Sussex Healthcare NHS Trust,22/03/2017,PROFESSIONAL FEES,Corporate Services,LIAISON FINANCIAL SERVICES LTD,0001446193,18715.69,
Department of Health,East Sussex Healthcare NHS Trust,22/03/2017,AGENCY DIRECT ENGAGEMENT,Other Central,LIAISON FINANCIAL SERVICES LTD,0001446193,249542.52,
Department of Health,East Sussex Healthcare NHS Trust,22/03/2017,PROVISIONS,Commercial,THE CUISINE CENTRE,0001917291,29991.82,
Department of Health,East Sussex Healthcare NHS Trust,22/03/2017,PACEMAKERS,Integrated Care,MEDTRONIC LTD,0002182685,20803.20,
Department of Health,East Sussex Healthcare NHS Trust,22/03/2017,IMPLANTABLE DEFIBRILLATOR,Integrated Care,MEDTRONIC LTD,0002182685,183316.82,
Department of Health,East Sussex Healthcare NHS Trust,22/03/2017,PATS CLOTHING OTHER,Commercial,INTERWEAVE TEXTILES LTD,0002268026,8862.00,
Department of Health,East Sussex Healthcare NHS Trust,22/03/2017,BEDDING & LINEN - BED LINEN,Commercial,INTERWEAVE TEXTILES LTD,0002268026,11328.00,
Department of Health,East Sussex Healthcare NHS Trust,22/03/2017,BEDDING & LINEN - OTHER,Commercial,INTERWEAVE TEXTILES LTD,0002268026,15840.00,
Department of Health,East Sussex Healthcare NHS Trust,22/03/2017,CONTRACT-VEHICLE LEASING,Commercial,SEVEN ASSET LIMITED,0002270060,32542.80,
Department of Health,East Sussex Healthcare NHS Trust,22/03/2017,STOCK-ASCRIBE EDGH,Pharmacy Stock,ROCHE PRODUCTS LTD,0013054226,28744.36,
Department of Health,East Sussex Healthcare NHS Trust,22/03/2017,STOCK-ASCRIBE EDGH,Pharmacy Stock,ROCHE PRODUCTS LTD,0013055570,40995.84,
Department of Health,East Sussex Healthcare NHS Trust,22/03/2017,STOCK-ASCRIBE EDGH,Pharmacy Stock,ROCHE PRODUCTS LTD,0013056423,-40995.84,
Department of Health,East Sussex Healthcare NHS Trust,24/03/2017,CONT.MAIN-MED & SURG EQUIP,Integrated Care,INTUITIVE SURGICAL LIMITED,0001444225,140000.00,
Department of Health,East Sussex Healthcare NHS Trust,29/03/2017,BLOOD PRODUCTS - NBS ST CONTRA,Integrated Care,NHS BLOOD AND TRANSPLANT (NHSBT),0000146734,67427.33,
Department of Health,East Sussex Healthcare NHS Trust,29/03/2017,BLOOD PRODUCTS - NBS ST CONTRA,Integrated Care,NHS BLOOD AND TRANSPLANT (NHSBT),0000147023,67427.33,
Department of Health,East Sussex Healthcare NHS Trust,29/03/2017,BLOOD PRODUCTS - NBS ST CONTRA,Integrated Care,NHS BLOOD AND TRANSPLANT (NHSBT),0000147024,63773.92,
Department of Health,East Sussex Healthcare NHS Trust,29/03/2017,BLOOD PRODUCTS - NBS ST CONTRA,Integrated Care,NHS BLOOD AND TRANSPLANT (NHSBT),0000147193,63773.92,
Department of Health,East Sussex Healthcare NHS Trust,29/03/2017,STOCK-ASCRIBE CONQUEST,Pharmacy Stock,ROCHE PRODUCTS LTD,0001287405,44949.70,
Department of Health,East Sussex Healthcare NHS Trust,29/03/2017,NHS SUPPLY CHAIN CREDITORS,Cross Site,NHS SUPPLY CHAIN,0001443134,167675.64,
Department of Health,East Sussex Healthcare NHS Trust,29/03/2017,NHS SUPPLY CHAIN CREDITORS,Cross Site,NHS SUPPLY CHAIN,0001443265,151541.90,
Department of Health,East Sussex Healthcare NHS Trust,29/03/2017,ELECTRICITY,Commercial,EDF ENERGY,0001444668,-29956.49,
Department of Health,East Sussex Healthcare NHS Trust,29/03/2017,PACEMAKERS,Integrated Care,MEDTRONIC LTD,0001444799,40776.00,
Department of Health,East Sussex Healthcare NHS Trust,29/03/2017,IMPLANTABLE DEFIBRILLATOR,Integrated Care,MEDTRONIC LTD,0001444799,102343.20,
Department of Health,East Sussex Healthcare NHS Trust,29/03/2017,GAS,Commercial,CORONA ENERGY,0001444855,47186.94,
Department of Health,East Sussex Healthcare NHS Trust,29/03/2017,H/CARE PURCH COM - SPIRE,Integrated Care,SPIRE HEALTHCARE FINANCE,0001444890,76094.00,
Department of Health,East Sussex Healthcare NHS Trust,29/03/2017,ELECTRICITY,Commercial,EDF ENERGY,0001444894,82118.79,
Department of Health,East Sussex Healthcare NHS Trust,29/03/2017,CONSULTANCY FEES,Corporate Services,PA CONSULTING SERVICES LTD,0001445241,267745.00,
Department of Health,East Sussex Healthcare NHS Trust,29/03/2017,ELECTRICITY,Commercial,EDF ENERGY,0001445515,40710.24,
Department of Health,East Sussex Healthcare NHS Trust,29/03/2017,CAPITAL EXPEND BUILDINGS,Other Central,PD HARRIS LTD (ALAN HARRIS),0001445971,25202.11,
Department of Health,East Sussex Healthcare NHS Trust,29/03/2017,PROFESSIONAL FEES,Corporate Services,LIAISON FINANCIAL SERVICES LTD,0001446312,17616.87,
Department of Health,East Sussex Healthcare NHS Trust,29/03/2017,AGENCY DIRECT ENGAGEMENT,Other Central,LIAISON FINANCIAL SERVICES LTD,0001446312,234891.65,
Department of Health,East Sussex Healthcare NHS Trust,29/03/2017,DRUGS-OTHER,Integrated Care,AAH PHARMACEUTICALS LTD,0001621478,25440.00,
Department of Health,East Sussex Healthcare NHS Trust,29/03/2017,PROVISIONS,Commercial,THE CUISINE CENTRE,0001917317,27040.59,
Department of Health,East Sussex Healthcare NHS Trust,29/03/2017,CAPITAL EXPEND BUILDINGS,Other Central,KAINOS SOFTWARE LTD,0002184833,37500.00,
Department of Health,East Sussex Healthcare NHS Trust,29/03/2017,CAPITAL EXPEND BUILDINGS,Other Central,PHILIPS MEDICAL SYSTEMS UK LTD,0002267645,76800.02,
Department of Health,East Sussex Healthcare NHS Trust,29/03/2017,STOCK-ASCRIBE EDGH,Pharmacy Stock,ALLIANCE HEALTHCARE (DISTRIBUTION) LTD,0002309407,95347.86,
Department of Health,East Sussex Healthcare NHS Trust,29/03/2017,STOCK-ASCRIBE CONQUEST,Pharmacy Stock,BAYER PLC,0002310443,100684.80,
Department of Health,East Sussex Healthcare NHS Trust,29/03/2017,CONTRACTED-OUT H.CARE SERVICES,Integrated Care,MEDICA REPORTING LTD,0002500225,57050.00,
Department of Health,East Sussex Healthcare NHS Trust,29/03/2017,STOCK-ASCRIBE EDGH,Pharmacy Stock,ROCHE PRODUCTS LTD,0013053660,31433.40,
Department of Health,East Sussex Healthcare NHS Trust,29/03/2017,AGENCY CONSULTANT,Integrated Care,NC HEALTHCARE LTD,0020070008,29507.70,
Department of Health,East Sussex Healthcare NHS Trust,31/03/2017,ELECTRICITY,Commercial,EDF ENERGY,0001444439,35912.59,
Department of Health,East Sussex Healthcare NHS Trust,31/03/2017,CAPITAL EXPEND BUILDINGS,Other Central,PD HARRIS LTD (ALAN HARRIS),0001446161,67895.36,
Department of Health,East Sussex Healthcare NHS Trust,31/03/2017,INTERNAL AUDIT - GENERAL AUDIT,Corporate Services,TIAA LTD,0002500137,36776.25,
Department of Health,East Sussex Healthcare NHS Trust,31/03/2017,INTERNAL AUDIT - COMPUTER,Corporate Services,TIAA LTD,0002500137,4806.75,
